bitfinex/quotes_ETHUSD_20240927
["timestamp","ask_amount","ask_price","bid_price","bid_amount"]
[1727425393618,0.00541407,2671.2,2671.1,48.3655857]
[1727425394263,0.799,2672.0,2671.2,3.55]
[1727425394463,0.799,2672.2,2672.1,4.29237]
[1727425394757,0.10506,2672.5,2672.4,4.29195]
[1727425394953,0.10506,2672.5,2672.4,5.58278772]
[1727425395748,0.10506,2672.5,2672.4,8.66831811]
[1727425395901,0.10506,2672.5,2672.4,8.59349539]
[1727425397043,0.10506,2672.5,2672.4,10.3279264]
[1727425397212,0.10506,2672.5,2672.4,8.59349539]
[1727425397415,0.10506,2672.5,2672.4,10.3279264]
[1727425398442,0.10506,2672.5,2672.4,45.3279264]
[1727425399786,0.10506,2672.5,2672.4,10.3279264]
[1727425400238,0.10506,2672.5,2672.4,45.3279264]
[1727425400639,0.10506,2672.5,2672.4,46.1318264]
[1727425403053,0.10506,2672.5,2672.4,11.1318264]
[1727425407058,0.10506,2672.5,2672.4,46.1318264]
[1727425407578,0.10506,2672.5,2672.4,11.1318264]
[1727425409797,0.10506,2672.5,2672.4,10.3279264]
[1727425410453,0.10506,2672.5,2672.4,11.1508264]
[1727425411610,0.10506,2672.5,2672.4,46.1508264]
[1727425414571,0.10506,2672.5,2672.4,11.1508264]
[1727425415019,0.10506,2672.5,2672.4,46.1508264]
[1727425419888,0.88440438,2673.1,2672.4,46.1508264]
[1727425419889,0.88440438,2673.1,2672.4,41.5859764]
[1727425420218,0.88440438,2673.1,2673.0,8.85064101]
[1727425420420,0.88440438,2673.1,2673.0,8.9361522]
[1727425421178,0.88440438,2673.1,2673.0,43.9361522]
[1727425421904,0.88440438,2673.1,2673.0,44.4861522]
[1727425422225,0.33440438,2673.1,2673.0,47.35311305]
[1727425422381,0.759,2673.8,2673.7,6.74013]
[1727425422577,0.759,2673.8,2673.7,6.8149157]
[1727425423677,0.759,2673.8,2673.7,7.1900157]
[1727425423925,0.759,2673.8,2673.7,7.2755045]
[1727425424282,0.759,2674.5,2673.8,0.9251]
[1727425424484,0.759,2674.5,2674.1,0.55]
[1727425424685,0.759,2674.5,2674.1,0.6247767]
[1727425425292,0.759,2674.5,2674.1,0.63547602]
[1727425425521,0.759,2674.5,2674.1,4.82478819]
[1727425426000,0.759,2674.5,2674.3,0.55]
[1727425426315,0.759,2674.5,2674.2,3.73941]
[1727425426316,0.759,2674.5,2674.4,0.63546643]
[1727425427879,0.759,2674.5,2674.4,0.08546643]
[1727425428395,0.759,2674.5,2674.2,0.3751]
[1727425430015,0.759,2674.5,2674.3,0.62477971]
[1727425431078,0.759,2674.5,2674.2,0.55]
[1727425432194,0.759,2674.5,2674.1,0.9251]
[1727425432524,0.7646,2674.5,2674.1,0.9251]
[1727425433082,0.759,2674.5,2674.1,0.99987815]
[1727425434981,0.0056,2674.4,2674.1,0.9251]
[1727425435205,0.0056,2674.2,2674.1,0.3751]
[1727425435518,0.8273,2674.2,2674.1,0.3751]
[1727425436019,1.28396,2674.2,2674.1,0.3751]
[1727425436325,1.25736,2674.2,2674.1,0.3751]
[1727425436528,0.8007,2674.2,2674.1,0.3751]
[1727425437228,0.8007,2674.2,2673.8,0.3751]
[1727425437383,0.0056,2673.9,2673.8,0.3751]
[1727425437589,0.7914,2673.9,2673.8,0.9251]
[1727425437999,0.7914,2673.9,2673.8,4.66509]
[1727425438197,0.0056,2673.9,2673.8,4.73987897]
[1727425438415,0.7858,2674.3,2674.1,0.3751]
[1727425439804,0.7858,2674.3,2674.2,4.28943]
[1727425440013,0.7858,2674.3,2674.2,4.66453]
[1727425441032,0.7858,2674.3,2674.2,4.7393097]
[1727425441421,0.7789,2674.5,2674.4,0.55]
[1727425441796,0.7789,2674.5,2674.3,0.55]
[1727425443627,0.7789,2674.5,2674.1,0.9251]
[1727425443798,0.7789,2674.5,2674.1,3.9251]
[1727425444941,0.7789,2674.5,2674.1,7.66458]
[1727425445159,0.7789,2674.5,2674.1,7.6646]
[1727425445352,0.7789,2674.5,2674.1,3.9251]
[1727425446739,0.7789,2674.5,2674.1,7.66467]
[1727425447335,0.7789,2674.5,2674.2,3.73943]
[1727425447680,0.7789,2674.5,2674.3,4.36399115]
[1727425448838,0.7789,2674.5,2674.3,4.36398688]
[1727425450120,0.7789,2674.5,2674.2,0.3751]
[1727425450325,0.7789,2674.5,2674.2,0.55]
[1727425451037,0.7789,2674.5,2674.2,4.28941]
[1727425451239,0.7733,2674.5,2674.2,4.28941]
[1727425451836,0.7733,2674.5,2674.2,4.28933]
[1727425452470,0.7733,2674.5,2674.3,3.73926]
[1727425452679,0.7733,2674.5,2674.4,0.55]
[1727425455283,0.0056,2674.8,2674.7,3.73873]
[1727425455618,0.0056,2674.8,2674.7,8.11643]
[1727425455922,0.4995,2675.0,2674.9,5.49125]
[1727425456229,0.4995,2675.0,2674.9,10.30043332]
[1727425456517,0.4995,2675.0,2674.9,10.22568101]
[1727425456720,0.4995,2675.0,2674.9,0.3751]
[1727425456877,1.2522,2675.0,2674.8,0.3751]
[1727425457278,0.4995,2675.0,2674.9,0.3751]
[1727425457589,0.4995,2675.0,2674.9,4.11355]
[1727425457788,0.4995,2675.0,2674.9,4.898777]
[1727425458500,0.4995,2675.0,2674.9,5.448777]
[1727425459073,0.4995,2675.0,2674.9,1.710327]
[1727425459818,0.4995,2675.0,2674.9,5.448777]
[1727425460122,0.4995,2675.0,2674.9,1.710327]
[1727425460319,0.4995,2675.0,2674.9,0.9251]
[1727425461919,0.4995,2675.0,2674.9,1.7045]
[1727425462124,0.4995,2675.0,2674.9,10.25212676]
[1727425462296,0.0008,2675.9,2675.1,4.11327]
[1727425462501,0.0008,2675.9,2675.1,11.92044998]
[1727425462819,0.0064,2675.9,2675.1,11.84571611]
[1727425463026,0.0064,2675.9,2675.8,0.9251]
[1727425463529,0.0064,2675.9,2675.8,4.73703189]
[1727425463530,0.0008,2675.9,2675.8,4.73703189]
[1727425463717,0.0008,2675.9,2675.8,1.85236819]
[1727425463914,0.0008,2675.9,2675.8,1.92709859]
[1727425464229,0.8158,2676.9,2676.0,0.55]
[1727425464384,0.8158,2677.2,2676.3,0.3751]
[1727425464579,0.03570361,2677.8,2676.8,0.3751]
[1727425464580,4.94051618,2677.7,2676.8,0.3751]
[1727425464787,1.20585618,2677.7,2676.7,0.8148]
[1727425465015,0.8069,2677.3,2676.7,0.55]
[1727425465183,4.54212,2677.3,2676.7,0.55]
[1727425465395,4.54212,2677.3,2676.5,0.55]
[1727425465605,3.769832,2677.3,2676.5,0.55]
[1727425465988,3.769832,2677.3,2676.5,3.73621]
[1727425466294,0.0024,2677.1,2676.6,0.55]
[1727425466498,0.0024,2677.1,2676.7,0.07470944]
[1727425466705,0.0024,2677.1,2676.6,4.28604]
[1727425466706,0.0024,2677.1,2676.6,0.62470673]
[1727425466907,0.0024,2677.2,2676.6,0.62470673]
[1727425467317,0.0024,2677.2,2676.6,4.28598]
[1727425467609,0.0024,2677.3,2676.8,0.55]
[1727425467793,0.0024,2677.3,2676.8,4.28579]
[1727425467988,0.0024,2677.3,2677.0,0.55]
[1727425468413,0.0024,2677.3,2677.1,0.55]
[1727425469423,0.0024,2677.3,2677.1,4.28538]
[1727425469592,0.0024,2677.3,2677.1,0.6246946]
[1727425469914,0.0024,2677.3,2677.2,4.28524]
[1727425470980,0.85280361,2677.8,2677.2,4.28524]
[1727425471208,0.85280361,2677.8,2677.3,0.62469005]
[1727425471406,0.85280361,2677.8,2677.5,0.55]
[1727425471593,0.0024,2677.6,2677.3,0.55]
[1727425472221,0.0024,2677.6,2677.0,0.55]
[1727425472444,0.373696,2677.5,2677.0,0.55]
[1727425472587,0.373696,2677.5,2677.0,0.62469603]
[1727425472792,0.0024,2677.4,2677.0,0.62469603]
[1727425473015,0.0024,2677.2,2677.0,0.62469603]
[1727425473329,0.0024,2677.4,2677.0,4.36011603]
[1727425473691,0.0024,2677.4,2677.0,4.28542]
[1727425473890,0.0024,2677.2,2677.0,4.36020388]
[1727425474123,0.85040361,2677.8,2677.0,4.36020388]
[1727425474124,0.0024,2677.4,2677.2,0.55]
[1727425474367,0.85040361,2677.8,2677.2,0.62469273]
[1727425474521,0.85040361,2677.8,2677.2,4.35989273]
[1727425474722,0.85040361,2677.8,2677.2,4.35981273]
[1727425475049,0.85040361,2677.8,2677.1,4.28527]
[1727425475255,0.85040361,2677.8,2677.3,0.55]
[1727425475449,1.3222359,2677.8,2677.3,0.55]
[1727425475646,0.85040361,2677.8,2677.3,0.55]
[1727425477241,4.58481361,2677.8,2677.1,0.55]
[1727425477563,3.73455,2677.7,2677.1,0.55]
[1727425477857,0.0024,2677.2,2677.1,0.55]
[1727425478072,0.0024,2677.4,2677.1,0.55]
[1727425478253,0.0024,2677.2,2677.1,0.55]
[1727425478424,0.0024,2677.4,2677.1,0.55]
[1727425480065,0.0024,2677.2,2677.1,0.55]
[1727425480289,0.0024,2677.4,2677.0,0.0746931]
[1727425480480,0.0024,2677.4,2677.1,3.73536]
[1727425480627,0.0024,2677.4,2677.0,7.5454731]
[1727425480828,0.0024,2677.4,2677.1,3.73532]
[1727425481342,0.0024,2677.4,2677.2,0.55]
[1727425481546,0.0024,2677.4,2677.1,0.62469356]
[1727425481952,0.0024,2677.4,2677.1,4.36006356]
[1727425482280,0.0024,2677.4,2677.3,4.2851]
[1727425482573,0.0024,2677.4,2677.3,4.35978803]
[1727425484676,0.0024,2677.4,2677.3,0.62468803]
[1727425484885,0.0024,2677.4,2677.3,4.35978803]
[1727425486779,0.0024,2677.4,2677.3,9.29083238]
[1727425487087,0.00305113,2678.0,2677.8,1.7071]
[1727425487298,0.39086965,2678.5,2678.1,4.10896]
[1727425487446,3.74184,2679.7,2678.1,4.10896]
[1727425487447,0.0124,2679.7,2678.3,11.63292371]
[1727425487656,0.01,2679.7,2678.6,4.10839]
[1727425487949,0.01,2679.7,2678.6,7.9650132]
[1727425488189,0.0024,2679.3,2678.6,7.89039]
[1727425488350,0.0024,2679.5,2678.6,7.89039]
[1727425488781,0.0024,2679.6,2678.6,7.89039]
[1727425489087,0.01,2679.7,2678.6,7.89039]
[1727425489597,0.0124,2679.7,2678.6,8.44039]
[1727425489766,0.0124,2679.7,2678.6,10.03198537]
[1727425490167,0.0124,2679.7,2678.6,10.49315735]
[1727425490366,3.74426,2679.7,2678.6,10.49315735]
[1727425490577,0.0024,2679.1,2678.6,8.90156198]
[1727425491064,0.0024,2678.9,2678.6,7.74446198]
[1727425491691,0.0024,2678.9,2678.6,8.11956198]
[1727425492460,0.0024,2678.9,2678.6,7.65839]
[1727425493160,0.7879,2679.2,2678.6,7.65839]
[1727425493355,0.0024,2678.9,2678.6,7.65839]
[1727425494505,0.7879,2679.2,2678.6,7.65839]
[1727425494659,0.0024,2679.0,2678.6,7.65839]
[1727425494864,0.0024,2678.8,2678.6,7.65839]
[1727425495101,0.7879,2679.2,2678.6,7.65839]
[1727425495312,0.0024,2679.0,2678.6,7.65839]
[1727425495662,0.0024,2679.1,2678.6,7.65839]
[1727425495874,0.0024,2679.2,2678.6,7.65839]
[1727425496203,0.0024,2679.0,2678.6,7.28329]
[1727425496498,0.0024,2679.2,2678.6,7.28329]
[1727425496720,0.0024,2678.9,2678.6,7.35793771]
[1727425497013,0.0024,2679.2,2678.6,7.73303771]
[1727425497187,0.0024,2679.2,2678.6,7.65839]
[1727425500582,0.7653,2678.7,2678.6,0.3751]
[1727425500788,4.49845,2678.7,2678.1,3.80864086]
[1727425501126,0.450085,2678.6,2678.2,3.73383]
[1727425501332,0.0107,2678.7,2678.6,3.73329]
[1727425501528,0.0107,2678.7,2678.6,3.80793649]
[1727425501679,0.0107,2678.7,2678.6,6.52160149]
[1727425501882,0.0107,2678.7,2678.6,9.89670149]
[1727425502092,0.0107,2678.7,2678.6,9.822055]
[1727425502696,0.0107,2678.7,2678.6,9.91088302]
[1727425503210,0.0107,2678.7,2678.6,10.372055]
[1727425503417,0.0107,2678.7,2678.6,26.65691371]
[1727425503585,0.0107,2678.7,2678.6,24.53757071]
[1727425503787,0.01,2679.7,2679.6,8.0342]
[1727425504229,0.01,2679.7,2679.6,8.4093]
[1727425505037,0.01,2679.7,2679.6,19.46239578]
[1727425505201,0.11,2681.2,2680.5,6.73064]
[1727425505406,0.0032,2681.3,2681.2,5.06377]
[1727425505407,0.1108,2681.3,2681.2,5.06377]
[1727425505627,0.1108,2681.3,2681.2,3.55]
[1727425505840,0.1108,2681.3,2680.9,0.55]
[1727425505990,0.1108,2681.3,2681.2,0.07458657]
[1727425506191,0.1108,2681.3,2681.2,8.17255032]
[1727425506418,0.1108,2681.3,2681.2,8.67062125]
[1727425506611,0.1108,2681.3,2681.2,9.04572125]
[1727425507090,0.1108,2681.3,2681.2,8.47307]
[1727425507291,1.00593896,2681.6,2681.5,3.55]
[1727425507504,1.00593896,2681.6,2681.3,6.72952]
[1727425507790,1.00593896,2681.6,2681.4,3.72937]
[1727425508116,0.0024,2681.3,2681.0,3.72993]
[1727425508318,0.0024,2681.1,2681.0,3.72993]
[1727425508690,0.0024,2681.3,2681.0,3.72993]
[1727425509024,1.00593896,2681.6,2681.0,3.72993]
[1727425509025,1.00833896,2681.6,2681.0,3.72993]
[1727425509229,1.00833896,2681.6,2681.2,0.55]
[1727425509436,1.00833896,2681.6,2681.5,3.72925]
[1727425509437,1.00593896,2681.6,2681.5,3.72925]
[1727425509933,1.00593896,2681.6,2681.5,4.65435]
[1727425510133,1.00593896,2681.6,2681.5,0.9251]
[1727425510316,1.00593896,2681.6,2681.5,0.55]
[1727425510643,1.00593896,2681.6,2681.3,0.55]
[1727425510952,1.00833896,2681.6,2681.1,0.55]
[1727425511107,1.00833896,2681.6,2681.0,3.0]
[1727425511108,0.4737429,2681.5,2681.0,3.0]
[1727425511290,0.0024,2681.2,2681.0,3.0]
[1727425511494,0.0024,2681.2,2680.8,3.73018]
[1727425511720,0.0024,2681.0,2680.9,3.73008]
[1727425512063,0.8128,2681.0,2680.3,0.3751]
[1727425512233,0.0024,2680.8,2680.1,4.20529125]
[1727425512555,0.0024,2680.8,2680.2,4.20510125]
[1727425512759,0.0024,2680.6,2680.2,0.54875336]
[1727425513059,0.8128,2681.0,2680.2,0.54875336]
[1727425513060,0.0024,2680.7,2680.2,4.27969336]
[1727425513231,0.0024,2680.5,2680.2,0.47415125]
[1727425513564,4.54277,2681.0,2679.9,0.3751]
[1727425513565,0.0024,2680.3,2679.9,0.07460694]
[1727425513850,0.0024,2680.1,2679.8,0.47415125]
[1727425514057,0.8056,2680.2,2679.9,0.47415125]
[1727425514667,0.0024,2680.0,2679.5,3.73201]
[1727425514823,0.0024,2680.1,2679.5,4.28078824]
[1727425515026,0.0024,2680.1,2679.6,0.47415125]
[1727425515225,0.0024,2679.9,2679.7,3.80636701]
[1727425515534,0.0024,2679.9,2679.8,3.73162]
[1727425516518,0.0024,2679.9,2679.8,0.55]
[1727425516743,0.0024,2679.9,2679.4,4.58141125]
[1727425516925,0.0024,2679.9,2679.8,3.73162]
[1727425517146,0.8032,2680.2,2679.8,3.80623826]
[1727425517344,0.8032,2680.2,2679.6,3.73183]
[1727425517546,0.8032,2680.2,2679.5,3.80661844]
[1727425517852,0.8032,2680.2,2679.5,4.28076969]
[1727425518253,0.8032,2680.2,2679.6,0.47415125]
[1727425518565,0.0024,2679.9,2679.4,3.0]
[1727425518853,0.0024,2679.8,2679.4,3.0]
[1727425519060,0.8032,2680.2,2679.4,3.0]
[1727425519061,0.0024,2679.6,2679.4,3.07463047]
[1727425519418,0.0024,2679.8,2679.4,3.07463047]
[1727425519724,0.0024,2679.6,2679.2,3.07463051]
[1727425519923,1.256624,2680.2,2678.9,3.73284]
[1727425519924,0.0024,2679.4,2678.9,3.73284]
[1727425520235,0.0024,2679.2,2678.7,3.73313]
[1727425520838,0.0024,2679.2,2678.5,3.73338]
[1727425521037,0.0024,2679.0,2678.6,0.373338]
[1727425521354,0.0024,2679.0,2678.6,3.373338]
[1727425521524,0.0024,2678.8,2678.6,7.106618]
[1727425521719,0.0024,2678.8,2678.6,3.373338]
[1727425521944,0.0024,2678.8,2678.6,3.0]
[1727425522121,0.0024,2678.8,2678.3,3.73368]
[1727425522319,0.7658,2678.7,2678.0,0.3751]
[1727425522523,0.0024,2678.8,2678.2,0.3751]
[1727425522761,0.0024,2679.2,2678.9,3.73285]
[1727425522927,0.7652,2679.5,2679.0,3.80725251]
[1727425523261,0.7652,2679.5,2679.1,3.73253]
[1727425523421,0.7652,2679.5,2679.0,0.07464251]
[1727425523622,0.7652,2679.5,2679.1,4.28255]
[1727425523937,0.7652,2679.5,2679.1,0.62464254]
[1727425524120,0.7652,2679.5,2679.1,0.55]
[1727425524325,0.7652,2679.5,2679.1,4.35719262]
[1727425524867,0.7652,2679.5,2679.3,0.55]
[1727425525171,0.7652,2679.5,2679.2,0.55]
[1727425525322,0.7652,2679.5,2679.2,4.28243]
[1727425525518,0.7652,2679.5,2679.2,4.35706798]
[1727425525753,0.7652,2679.5,2679.2,0.55]
[1727425525956,0.0024,2679.7,2679.4,0.55]
[1727425527062,0.0024,2679.7,2679.2,0.55]
[1727425527541,0.0024,2679.3,2679.0,3.55]
[1727425527721,0.0024,2679.3,2679.0,7.28264]
[1727425527921,0.0024,2679.3,2678.8,6.73301]
[1727425528121,0.7543,2679.8,2679.1,3.73254]
[1727425528630,0.0024,2679.9,2679.7,3.73176]
[1727425528826,0.0024,2679.9,2679.8,0.07462206]
[1727425529065,0.0024,2680.1,2679.8,3.73162]
[1727425529362,0.0024,2680.1,2679.9,0.55]
[1727425529537,0.8327,2680.2,2680.0,0.55]
[1727425529937,0.8327,2680.2,2679.8,0.55]
[1727425530171,0.0024,2680.0,2679.8,0.55]
[1727425530331,0.0024,2680.0,2679.5,6.73201]
[1727425530332,0.0024,2680.0,2679.6,3.0]
[1727425530532,0.0024,2679.7,2679.6,3.55]
[1727425531170,4.56385,2680.2,2679.6,7.99677266]
[1727425531171,0.0024,2679.9,2679.6,7.99677266]
[1727425531353,0.0024,2679.9,2679.7,0.55]
[1727425531552,0.8327,2680.2,2679.7,0.55]
[1727425532066,0.8327,2680.2,2679.7,4.28174]
[1727425532556,0.8327,2680.2,2679.8,3.73149]
[1727425532870,0.7813,2680.5,2679.9,4.28138]
[1727425533165,0.0024,2680.3,2680.2,4.28106]
[1727425533366,0.7813,2680.5,2680.2,0.55]
[1727425533570,0.0024,2680.4,2680.2,0.55]
[1727425533934,0.0024,2680.4,2679.9,4.104529]
[1727425534143,0.7813,2680.5,2680.0,4.28131]
[1727425534344,0.7813,2680.5,2680.0,0.55]
[1727425534555,0.7813,2680.5,2680.2,0.55]
[1727425534767,0.0024,2680.3,2680.2,4.28103]
[1727425536083,0.0024,2680.3,2680.1,0.55]
[1727425536672,0.0024,2680.3,2679.9,0.55]
[1727425537058,0.0024,2680.3,2679.9,4.28146]
[1727425537258,0.0024,2680.3,2679.9,0.55]
[1727425537462,0.0024,2680.3,2679.9,4.28147]
[1727425537875,0.0024,2680.3,2680.0,3.73123]
[1727425538078,0.0024,2680.3,2680.1,4.28117]
[1727425538288,0.0024,2680.3,2680.1,0.55]
[1727425538487,0.0024,2680.3,2679.8,0.07461787]
[1727425538686,0.0024,2680.3,2680.2,4.28106]
[1727425541693,0.0024,2680.3,2680.2,4.35567272]
[1727425542569,0.0024,2681.0,2680.7,3.73036]
[1727425542770,0.0024,2681.0,2680.7,3.73026]
[1727425543006,0.0024,2681.1,2680.8,0.55]
[1727425543209,0.0024,2681.1,2680.8,4.28011]
[1727425543508,0.0024,2681.1,2681.0,0.55]
[1727425543910,0.005,2681.3,2681.1,0.55]
[1727425544097,0.005,2681.3,2681.2,4.27967]
[1727425544805,0.005,2681.3,2681.2,8.1282414]
[1727425545093,0.005,2681.3,2681.2,10.96241998]
[1727425545870,1.00593896,2681.6,2681.5,4.89125]
[1727425546106,1.00593896,2681.6,2681.5,13.10514538]
[1727425546311,1.00593896,2681.6,2681.5,13.03058771]
[1727425546487,1.00593896,2681.6,2681.5,14.75393362]
[1727425548574,1.00593896,2681.6,2681.5,10.16459591]
[1727425550444,1.00593896,2681.6,2681.5,3.72925]
[1727425551920,1.00593896,2681.6,2681.5,4.27925]
[1727425552979,1.00593896,2681.6,2681.5,4.65435]
[1727425553786,1.00593896,2681.6,2681.5,4.27925]
[1727425553982,0.8068,2681.5,2680.9,0.51280474]
[1727425554186,0.0024,2681.0,2680.2,0.755]
[1727425554405,0.0024,2680.8,2680.3,0.07460376]
[1727425554605,0.0024,2680.6,2680.3,3.73081]
[1727425554920,0.8274,2680.5,2680.1,3.73116]
[1727425555232,0.8274,2680.5,2680.0,3.73134]
[1727425555521,0.0024,2680.3,2679.9,3.80604491]
[1727425555724,0.0024,2680.3,2680.0,0.45693199]
[1727425555909,0.0024,2680.3,2680.0,4.18826199]
[1727425556108,0.0024,2680.3,2680.0,3.45693199]
[1727425556281,0.0024,2680.3,2680.0,7.18817199]
[1727425556483,0.8298,2680.5,2680.1,0.72630169]
[1727425556916,0.8298,2680.5,2680.1,4.45739169]
[1727425557115,0.0024,2680.3,2680.1,4.45739169]
[1727425557338,0.8298,2680.5,2680.1,0.72630169]
[1727425557546,0.8274,2680.5,2680.3,0.55]
[1727425557751,0.8274,2680.5,2680.2,0.55]
[1727425557918,0.8274,2680.5,2680.4,0.55]
[1727425558825,0.8274,2680.5,2680.1,0.55]
[1727425559025,0.8274,2680.5,2680.1,4.28117]
[1727425559231,0.8274,2680.5,2680.1,5.4281182]
[1727425559918,0.8274,2680.5,2680.2,3.73106]
[1727425560122,0.8274,2680.5,2680.3,3.73092]
[1727425560850,0.8274,2680.5,2680.4,0.55]
[1727425561011,0.8274,2680.5,2680.4,4.28078]
[1727425561518,0.0024,2680.7,2680.4,4.28078]
[1727425561849,0.0024,2680.7,2680.4,0.55]
[1727425562034,0.0024,2680.5,2680.4,0.55]
[1727425562353,0.0024,2680.5,2680.2,3.73105]
[1727425562645,0.8289,2680.8,2680.0,3.0]
[1727425562646,0.0024,2680.7,2680.4,3.73078]
[1727425563226,0.0024,2680.7,2680.3,3.80540398]
[1727425563411,0.0024,2680.7,2680.6,4.2805]
[1727425563611,0.0024,2680.9,2680.8,3.73022]
[1727425563847,0.8289,2681.2,2680.9,3.73007]
[1727425564047,0.8289,2681.2,2680.9,0.07459324]
[1727425564575,1.00593896,2681.6,2681.5,3.72925]
[1727425564724,1.00593896,2681.6,2681.5,4.27925]
[1727425565153,1.00833896,2681.6,2681.5,4.27925]
[1727425566027,1.00593896,2681.6,2681.5,4.27925]
[1727425566224,1.00593896,2681.6,2681.5,7.27925]
[1727425566425,1.00593896,2681.6,2681.5,8.45469143]
[1727425566653,1.00593896,2681.6,2681.5,8.380126]
[1727425566928,1.00593896,2681.6,2681.5,5.380126]
[1727425567154,1.00593896,2681.6,2681.5,1.650876]
[1727425567470,1.80513896,2681.6,2681.3,0.55]
[1727425567619,1.80513896,2681.6,2681.1,3.72976]
[1727425567826,1.00593896,2681.6,2681.5,3.72925]
[1727425568146,1.00833896,2681.6,2681.5,3.72925]
[1727425568346,1.00593896,2681.6,2681.5,3.72925]
[1727425568754,1.00593896,2681.6,2681.5,4.27925]
[1727425569065,1.00833896,2681.6,2681.5,4.27925]
[1727425569362,1.00593896,2681.6,2681.3,3.7294]
[1727425569564,1.00833896,2681.6,2681.4,0.55]
[1727425569752,1.00833896,2681.6,2681.4,4.27935]
[1727425569964,1.00593896,2681.6,2681.5,3.72925]
[1727425570155,1.00593896,2681.6,2681.5,4.27925]
[1727425571268,1.00593896,2681.6,2681.5,4.35382651]
[1727425571663,1.00593896,2681.6,2681.5,4.27925]
[1727425572672,1.00833896,2681.6,2681.5,4.27925]
[1727425572986,1.00593896,2681.6,2681.5,4.27925]
[1727425573347,1.00833896,2681.6,2681.5,0.55]
[1727425573547,1.00593896,2681.6,2681.5,0.55]
[1727425573748,1.00593896,2681.6,2681.5,3.72925]
[1727425574384,1.00593896,2681.6,2681.5,4.1096328]
[1727425574574,0.8193,2681.5,2681.0,0.38048132]
[1727425574902,0.8193,2681.5,2681.1,3.72977]
[1727425575060,0.0024,2681.2,2681.0,3.72994]
[1727425575255,0.0024,2681.3,2680.9,3.73006]
[1727425575555,0.0024,2681.1,2680.9,3.73006]
[1727425575698,0.0024,2681.2,2680.7,3.73031]
[1727425575905,0.0024,2681.1,2681.0,3.72994]
[1727425576104,0.0024,2681.3,2681.0,3.72994]
[1727425576409,0.0024,2681.1,2680.8,3.73016]
[1727425576573,0.0024,2680.9,2680.8,3.73016]
[1727425576764,0.0024,2681.1,2680.8,3.73016]
[1727425576962,0.7582,2680.9,2680.6,3.73047]
[1727425577210,0.7582,2680.9,2680.8,3.73022]
[1727425577591,0.0024,2680.9,2680.8,3.80481803]
[1727425577776,0.0024,2681.2,2681.0,3.72995]
[1727425577965,0.0024,2681.2,2681.1,3.72981]
[1727425578166,0.0024,2681.4,2681.2,4.27958]
[1727425578369,1.78463896,2681.6,2681.3,4.27953]
[1727425578581,1.78463896,2681.6,2681.4,4.27929]
[1727425579314,1.78463896,2681.6,2681.4,0.55]
[1727425579520,1.78463896,2681.6,2681.4,0.62458117]
[1727425579676,1.00593896,2681.6,2681.5,4.27925]
[1727425579881,1.00593896,2681.6,2681.5,5.08755912]
[1727425580791,1.00593896,2681.6,2681.5,5.162133]
[1727425580996,1.00593896,2681.6,2681.5,8.537233]
[1727425581191,1.00593896,2681.6,2681.5,8.46265912]
[1727425581389,0.53636979,2681.6,2681.5,9.28225912]
[1727425582212,0.08380778,2681.6,2681.5,9.28225912]
[1727425591036,0.08380778,2681.6,2681.5,4.53755912]
[1727425591220,0.08380778,2681.6,2681.5,4.61212627]
[1727425591635,0.08380778,2681.6,2681.5,4.98722627]
[1727425592321,0.08380778,2681.6,2681.5,8.53722627]
[1727425592634,0.08380778,2681.6,2681.5,8.46265912]
[1727425593452,0.08380778,2681.6,2681.5,8.08755912]
[1727425595748,0.08380778,2681.6,2681.5,8.46265912]
[1727425595953,0.08380778,2681.6,2681.5,13.83409683]
[1727425599114,0.08380778,2681.6,2681.5,9.24475912]
[1727425599452,0.08380778,2681.6,2681.5,8.46265912]
[1727425599854,0.08380778,2681.6,2681.5,7.91265912]
[1727425600152,0.83660778,2681.6,2681.5,3.72925]
[1727425601313,0.83660778,2681.6,2681.5,6.72925]
[1727425602330,0.83660778,2681.6,2681.5,7.27925]
[1727425605263,0.08380778,2681.6,2681.5,7.27925]
[1727425605424,0.08380778,2681.6,2681.5,8.380101]
[1727425606118,0.08380778,2681.6,2681.5,9.17596526]
[1727425606344,0.08380778,2681.6,2681.5,8.755201]
[1727425609039,0.08380778,2681.6,2681.5,9.17596526]
[1727425609236,0.08380778,2681.6,2681.5,9.96756526]
[1727425609450,0.08380778,2681.6,2681.5,10.31953708]
[1727425609758,0.08380778,2681.6,2681.5,9.96756526]
[1727425609960,0.08380778,2681.6,2681.5,10.45257968]
[1727425610272,0.08380778,2681.6,2681.5,15.39389448]
[1727425610588,0.08380778,2681.6,2681.5,14.5310841]
[1727425611967,0.08380778,2681.6,2681.5,13.07534004]
[1727425612160,0.08380778,2681.6,2681.5,12.72332833]
[1727425612473,0.08380778,2681.6,2681.5,8.996801]
[1727425612832,0.08380778,2681.6,2681.5,9.7695952]
[1727425613033,0.08380778,2681.6,2681.5,10.3195952]
[1727425613834,0.08380778,2681.6,2681.5,9.546801]
[1727425614034,0.08380778,2681.6,2681.5,8.755201]
[1727425614280,0.88110778,2681.6,2681.4,3.72926]
[1727425614488,0.88350778,2681.6,2681.3,3.72952]
[1727425614779,0.88350778,2681.6,2681.4,3.72937]
[1727425614979,0.88350778,2681.6,2681.3,3.72952]
[1727425615276,0.8125,2681.5,2681.2,3.72966]
[1727425615445,0.0024,2681.4,2681.1,3.72969]
[1727425615777,0.8125,2681.1,2680.7,3.73023]
[1727425615939,0.0024,2681.0,2680.7,3.73023]
[1727425616539,0.7993,2680.8,2680.7,3.73023]
[1727425616884,0.7969,2680.8,2680.7,3.73023]
[1727425618165,0.7969,2680.8,2680.5,3.7306]
[1727425618166,0.7993,2680.8,2680.6,6.73047]
[1727425618757,0.7993,2680.8,2680.5,3.7306]